bitfinex/quotes_ETHUSD_20220109
["timestamp","ask_amount","ask_price","bid_price","bid_amount"]
[1641743156798,0.00113684,3095.9,3095.6,1.28080807]
[1641743158589,0.80926684,3095.9,3095.6,1.28080807]
[1641743158789,0.80816,3095.8,3095.6,1.28080807]
[1641743161427,0.80816,3095.8,3095.7,2.75253866]
[1641743165272,0.80816,3095.8,3095.6,1.28080807]
[1641743166374,0.80816,3095.8,3095.6,1.28179055]
[1641743167375,0.80816,3095.8,3095.6,1.28080807]
[1641743167576,0.00113684,3095.9,3095.7,2.75265703]
[1641743168036,0.00113684,3095.9,3095.8,16.0854706]
[1641743168233,0.00113684,3095.9,3095.8,16.8174706]
[1641743168431,0.00113684,3095.9,3095.8,17.8174706]
[1641743168633,0.00113684,3095.9,3095.8,23.3937206]
[1641743168832,0.00113684,3095.9,3095.8,22.5859706]
[1641743169033,0.00113684,3095.9,3095.8,24.33862763]
[1641743169445,3.684e-05,3095.9,3095.8,25.63862763]
[1641743169633,3.684e-05,3095.9,3095.8,44.86106198]
[1641743169834,3.684e-05,3095.9,3095.8,45.66879198]
[1641743170033,3.684e-05,3095.9,3095.8,23.87959138]
[1641743170234,3.684e-05,3095.9,3095.8,28.0047318]
[1641743170437,3.684e-05,3095.9,3095.8,27.99229745]
[1641743171339,3.684e-05,3095.9,3095.8,7.52115703]
[1641743172382,3.684e-05,3095.9,3095.8,7.83488885]
[1641743172584,3.684e-05,3095.9,3095.8,4.23258885]
[1641743172985,3.684e-05,3095.9,3095.8,4.82965983]
[1641743173286,3.684e-05,3095.9,3095.8,11.67965983]
[1641743173884,3.684e-05,3095.9,3095.8,13.10554691]
[1641743174284,3.684e-05,3095.9,3095.8,4.82965983]
[1641743174484,3.684e-05,3095.9,3095.8,2.75265703]
[1641743175084,0.00677781,3096.5,3096.4,0.00076316]
[1641743175283,0.00677781,3096.5,3095.8,2.75265703]
[1641743175552,0.00284212,3096.4,3096.3,1.40148275]
[1641743175838,0.80801,3096.2,3095.9,3.635]
[1641743176235,0.00113685,3096.1,3095.7,2.75265703]
[1641743176433,0.00113685,3096.1,3095.6,2.05016011]
[1641743176634,0.00397897,3096.6,3095.6,2.05016011]
[1641743176834,0.00397897,3096.6,3095.7,0.00113684]
[1641743177034,0.00341054,3096.5,3095.7,2.75365598]
[1641743177435,0.00511581,3096.8,3095.8,1.26805837]
[1641743177635,0.00511581,3096.8,3096.5,1.43051838]
[1641743177838,0.00454739,3096.7,3096.1,1.36206501]
[1641743178234,0.00397897,3096.6,3096.1,1.36206501]
[1641743178635,0.00341054,3096.5,3096.1,1.36206501]
[1641743179037,0.00454739,3096.7,3096.2,1.37697344]
[1641743179480,0.81186897,3096.6,3096.2,1.37697344]
[1641743179879,0.00341054,3096.5,3096.2,1.37697344]
[1641743181379,0.00341054,3096.5,3096.2,3.31196005]
[1641743181579,0.00341054,3096.5,3096.2,1.37697344]
[1641743181780,0.00341054,3096.5,3096.2,3.30873392]
[1641743182580,0.00341054,3096.5,3096.3,2.75195735]
[1641743182780,0.00341054,3096.5,3096.4,16.86299582]
[1641743184325,0.00341054,3096.5,3096.4,5.31593539]
[1641743184926,0.00341054,3096.5,3096.4,11.26593539]
[1641743185326,0.00341054,3096.5,3096.4,11.26495317]
[1641743185525,0.80764,3097.8,3096.5,8.45764]
[1641743185728,0.80764,3097.8,3096.6,2.26400086]
[1641743185927,0.81277581,3097.4,3096.6,2.26400086]
[1641743186330,0.00454739,3097.3,3096.6,2.26400086]
[1641743186528,0.00454739,3097.3,3097.1,1.18346923]
[1641743186785,0.00397897,3097.2,3097.1,1.18346923]
[1641743189992,0.00397897,3097.2,3097.1,8.94995343]
[1641743190842,0.00397897,3097.2,3097.1,15.75737343]
[1641743191444,0.27714059,3097.5,3097.4,37.79195175]
[1641743191645,0.27714059,3097.5,3097.4,38.77295175]
[1641743192041,0.80736,3098.6,3097.5,10.1]
[1641743192242,0.80736,3098.6,3098.2,1.13826134]
[1641743192442,0.00625266,3098.3,3098.1,1.49088357]
[1641743192642,0.00625266,3098.3,3097.5,3.8988]
[1641743192841,0.00677781,3098.1,3097.5,3.8988]
[1641743193042,0.00677781,3098.1,3097.7,0.8073746]
[1641743193344,0.00677781,3098.1,3097.8,1.29380156]
[1641743193345,0.00454739,3098.0,3097.8,1.29380156]
[1641743193643,0.00677781,3098.1,3097.8,1.29380156]
[1641743193644,0.00397896,3097.9,3097.8,1.29380156]
[1641743194478,0.00397896,3097.9,3097.8,2.72214901]
[1641743195478,0.00397896,3097.9,3097.8,4.7458884]
[1641743195676,0.00397896,3097.9,3097.8,2.72214901]
[1641743195878,2.74680394,3098.4,3097.9,4.05]
[1641743196077,2.74680394,3098.4,3097.8,2.72214901]
[1641743196277,0.0022737,3098.3,3097.8,2.72214901]
[1641743196681,0.00170527,3098.2,3097.8,2.72214901]
[1641743197079,0.00113685,3098.1,3097.8,2.72214901]
[1641743197682,0.00113685,3098.1,3097.8,1.42834745]
[1641743197883,0.80862685,3098.1,3097.8,1.42834745]
[1641743198731,0.80862685,3098.1,3097.5,3.8988]
[1641743198732,0.18765746,3097.8,3097.5,5.05662386]
[1641743198934,0.18765746,3097.8,3097.6,1.20870143]
[1641743199131,0.18765746,3097.8,3097.6,1.2104067]
[1641743199334,0.18765746,3097.8,3097.7,0.00113684]
[1641743199833,0.18765746,3097.8,3097.7,3.45113684]
[1641743200232,0.18765746,3097.8,3097.7,0.00113684]
[1641743202781,0.18765746,3097.8,3097.7,3.75113684]
[1641743203585,1.12818825,3098.4,3098.0,1.0613994]
[1641743203883,0.00113685,3098.3,3097.7,0.80963339]
[1641743204284,0.00113685,3098.3,3097.8,0.00170527]
[1641743204484,0.80749,3098.1,3097.8,0.00170527]
[1641743204688,0.80749,3098.1,3097.5,0.00341054]
[1641743205184,0.80749,3098.1,3097.6,1.23817433]
[1641743205628,0.80749,3098.1,3097.7,0.00227369]
[1641743206732,1.61505,3098.1,3097.7,0.00227369]
[1641743206930,1.61505,3098.1,3097.5,0.00341054]
[1641743207130,1.26440339,3098.2,3097.4,0.00397897]
[1641743207131,1.61527,3097.8,3097.4,0.00397897]
[1641743207530,1.61527,3097.8,3097.2,0.00511581]
[1641743207730,1.61564,3097.6,3096.5,0.00909478]
[1641743207931,1.61564,3097.6,3095.7,2.83781972]
[1641743207932,12.8,3096.2,3095.7,2.83781972]
[1641743208134,13.60796,3096.2,3095.7,2.83781972]
[1641743208429,13.60796,3096.2,3094.9,3.8933]
[1641743208430,13.90796,3096.2,3095.8,0.00397896]
[1641743208630,0.08027422,3096.1,3095.8,0.00397896]
[1641743208832,0.08027422,3096.1,3095.9,1.46739255]
[1641743209293,0.08027422,3096.1,3096.0,0.00284211]
[1641743209294,1.69671422,3096.1,3096.0,0.00284211]
[1641743209796,8.24671422,3096.1,3096.0,0.00284211]
[1641743209996,2.50481422,3096.1,3096.0,0.00284211]
[1641743210194,2.42454,3096.1,3096.0,0.00284211]
[1641743211199,0.8083,3095.7,3094.7,4.12900166]
[1641743211398,0.8083,3095.7,3095.5,0.00284212]
[1641743211596,0.88857422,3095.7,3095.5,0.00284212]
[1641743211797,0.88857422,3095.7,3094.7,4.12900166]
[1641743211798,15.264,3095.6,3094.7,4.12900166]
[1641743211996,14.8,3095.5,3095.4,2.17849864]
[1641743212197,0.8084,3095.2,3095.0,1.3702846]
[1641743212600,0.8084,3095.2,3095.1,0.00227369]
[1641743213631,0.80842,3094.8,3094.5,3.9121]
[1641743213832,0.8084196,3094.7,3094.4,6.16]
[1641743214033,0.8084196,3094.7,3094.6,0.00284212]
[1641743214434,2.42526,3094.8,3094.6,0.00284212]
[1641743215435,2.42526,3094.8,3094.6,1.37626495]
[1641743215736,0.80842,3094.7,3094.6,1.37342283]
[1641743215934,1.10508046,3094.8,3094.6,1.37342283]
[1641743216134,1.10508046,3094.8,3094.6,1.37626495]
[1641743216634,0.80842,3094.7,3094.6,1.37626495]
[1641743218288,0.80842,3094.7,3094.6,0.00284212]
[1641743218690,0.80842,3094.7,3094.3,0.00454739]
[1641743218891,0.80839,3094.5,3094.3,0.00454739]
[1641743219291,0.80839,3094.5,3094.4,1.13842899]
[1641743219697,0.80839,3094.5,3094.4,1.14240796]
[1641743220750,0.80839,3094.5,3094.4,0.00397897]
[1641743221151,0.80848,3094.3,3093.9,0.00682109]
[1641743221352,0.80848,3094.3,3093.7,0.00795793]
[1641743221353,0.80847,3094.1,3093.7,0.00795793]
[1641743222050,1.6170543,3094.1,3093.7,0.00795793]
[1641743222252,3.042705,3094.2,3093.5,0.00909478]
[1641743222253,1.425765,3094.2,3093.5,0.00909478]
[1641743222450,1.6979688,3094.1,3093.5,0.00909478]
[1641743222651,0.80866,3093.9,3093.5,0.00909478]
[1641743222853,0.80877,3093.7,3093.5,1.46284653]
[1641743223252,1.6175327,3093.7,3093.6,0.00852636]
[1641743223453,0.80877,3093.7,3093.6,0.00852636]
[1641743224056,2.42632,3093.7,3093.6,0.00852636]
[1641743225284,2.42632,3093.7,3093.1,1.36717055]
[1641743225285,2.42632,3093.7,3093.5,0.00909478]
[1641743225486,2.42632,3093.7,3093.2,0.01080005]
[1641743225487,0.80866,3093.5,3093.2,0.01080005]
[1641743225883,1.58238949,3093.7,3093.3,5.95]
[1641743226086,1.58238949,3093.7,3093.6,1.28973384]
[1641743226489,2.39115949,3093.7,3093.6,1.2982602]
[1641743226687,12.4982602,3093.6,3093.3,2.75428616]
[1641743226885,12.4982602,3093.6,3092.9,0.9311203]
[1641743226891,0.8892429,3093.5,3092.9,0.9311203]
[1641743227084,1.61759,3093.3,3092.9,0.9311203]
[1641743227886,0.80879,3093.2,3093.0,1.49782265]
[1641743228338,0.80879,3093.2,3093.1,0.00284211]
[1641743229135,1.2982602,3093.6,3093.1,2.75731655]
[1641743229537,1.2982602,3093.6,3093.2,0.00227369]
[1641743229737,0.80869,3093.4,3093.2,0.00227369]
[1641743230240,5.49847,3093.3,3093.2,0.00227369]
[1641743230439,1.69847,3093.3,3093.2,0.00227369]
[1641743232083,1.61766,3093.3,3093.2,0.00227369]
[1641743232281,1.61766,3093.3,3093.1,2.75461605]
[1641743232683,1.61766,3093.3,3093.2,0.00227369]
[1641743232884,1.69813,3093.3,3093.2,0.00227369]
[1641743234387,1.2982602,3093.6,3093.2,0.00227369]
[1641743234785,1.2982602,3093.6,3093.4,1.42477588]
[1641743234986,1.2982602,3093.6,3093.2,0.00227369]
[1641743235185,1.2982602,3093.6,3093.4,1.23997059]
[1641743235630,2.1069902,3093.6,3093.4,1.23997059]
[1641743236240,1.59518991,3093.6,3093.2,1.37303341]
[1641743236534,1.59518991,3093.6,3093.3,0.00170527]
[1641743237133,1.67546413,3093.6,3093.3,0.00170527]
[1641743237334,0.88948,3093.5,3093.3,0.00170527]
[1641743237633,1.61754,3093.4,3093.0,0.00341054]
[1641743237834,1.61754,3093.4,3092.9,0.9311203]
[1641743237835,17.25203058,3093.3,3092.9,0.9311203]
[1641743238036,17.25203058,3093.3,3092.3,1.16698701]
[1641743238037,0.80909,3092.9,3092.3,1.16698701]
[1641743238235,0.0805,3092.8,3092.2,1.16698701]
[1641743238537,0.80908,3092.6,3092.2,1.12039755]
[1641743238734,0.80908,3092.6,3092.3,1.36087605]
[1641743239138,0.80908,3092.6,3092.3,4.11598879]
[1641743239383,0.80908,3092.6,3092.3,2.75511274]
[1641743239384,0.8091,3092.5,3092.3,2.75511274]
[1641743239583,0.8091,3092.5,3092.4,0.00170527]
[1641743240183,0.8091,3092.5,3092.3,0.00227369]
[1641743240583,1.6182,3092.6,3092.3,0.00227369]
[1641743241189,1.6182,3092.6,3092.3,2.75738643]
[1641743241585,0.8091,3092.5,3092.3,2.75738643]
[1641743241785,0.91015099,3092.9,3092.7,1.29375618]
[1641743242186,1.69879,3093.0,3092.7,1.29375618]
[1641743242388,1.61859441,3092.9,3092.7,1.29375618]
[1641743242585,1.61973126,3092.9,3092.7,1.29375618]
[1641743242787,0.80899,3092.8,3092.7,1.29375618]
[1641743243632,0.80899,3092.8,3092.7,2.4475986]
[1641743246238,7.20899,3092.8,3092.7,2.4475986]
[1641743246438,7.20899,3092.8,3092.3,0.00227369]
[1641743246439,0.8090416,3092.7,3092.3,0.00227369]
[1641743246637,0.80907,3092.4,3092.3,0.00227369]
[1641743246885,0.80907,3092.4,3092.2,1.5558439]
[1641743247083,0.80907,3092.4,3092.3,0.00227369]
[1641743247684,0.80907,3092.4,3092.3,1.44245088]
[1641743247884,1.6181491,3092.4,3092.3,1.44245088]
[1641743248084,1.6181491,3092.4,3092.3,0.00227369]
[1641743248285,7.1681491,3092.4,3092.3,0.00227369]
[1641743248485,7.9772791,3092.4,3092.1,0.00341054]
[1641743248684,2.4272791,3092.4,3092.1,0.00341054]
[1641743248883,3.2363991,3092.4,3092.1,1.16754449]
[1641743249089,3.2363991,3092.4,3091.8,1.5558439]
[1641743249090,12.5,3092.2,3091.8,1.5558439]
[1641743249286,0.80923,3092.0,3091.8,1.5558439]
[1641743249485,2.2416143,3091.9,3091.8,1.5558439]
[1641743249688,5.15,3091.9,3091.6,2.33551382]
[1641743249888,1.45771546,3092.0,3091.8,0.00170527]
[1641743250088,6.55,3091.9,3091.6,2.33551382]
[1641743250288,1.39738928,3091.7,3091.6,2.33551382]
[1641743250543,2.28701928,3091.7,3091.5,2.33551382]
[1641743250735,0.61294288,3091.9,3091.6,0.00113685]
[1641743251334,1.55349081,3091.8,3091.6,0.00113685]
[1641743251534,1.55349081,3091.8,3091.4,2.33551382]
[1641743251535,1.2733,3091.7,3091.4,2.33551382]
[1641743251737,1.2733,3091.7,3091.3,2.33551382]
[1641743251934,1.61882,3091.5,3091.3,2.33551382]
[1641743252133,1.61882,3091.5,3091.4,0.00113684]
[1641743253133,2.4281966,3091.5,3091.4,0.00113684]
[1641743254287,1.61882,3091.5,3091.4,0.00113684]
[1641743254482,1.61882,3091.5,3091.3,0.00170527]
[1641743254683,1.61882,3091.5,3091.3,2.33721909]
[1641743255283,1.61882,3091.5,3091.4,3.40102014]
[1641743255883,1.61882,3091.5,3091.4,1.06550632]
[1641743256083,1.61882,3091.5,3091.3,2.33721909]
[1641743256684,2.4281676,3091.5,3091.3,2.33721909]
[1641743256888,1.71981855,3091.7,3091.3,2.33721909]
[1641743257090,14.8,3091.5,3091.1,3.11077858]
[1641743257288,0.80958,3091.3,3091.1,3.11077858]
[1641743257488,1.27358,3091.3,3091.1,1.60077858]
[1641743257688,0.464,3091.2,3091.1,1.60077858]
[1641743257898,0.80957,3090.9,3090.5,3.837]
[1641743258160,0.80957,3090.9,3090.0,17.99692002]
[1641743258161,2.29347248,3090.8,3090.4,1.26032909]
[1641743258349,0.8095655,3090.8,3090.4,1.26032909]
[1641743258547,0.8095655,3090.8,3090.5,0.00454738]
[1641743258747,0.8095655,3090.8,3090.6,2.75669612]
[1641743258946,1.6191055,3090.8,3090.6,2.75669612]
[1641743259147,1.6191055,3090.8,3090.7,0.00341054]
[1641743259550,0.8095655,3090.8,3090.7,1.17792628]
[1641743259946,14.95187939,3090.7,3090.6,2.75669612]
[1641743260149,14.95187939,3090.7,3090.6,1.56602099]
[1641743260150,0.464,3090.7,3090.6,1.56602099]
[1641743260348,0.54427422,3090.7,3090.6,1.56602099]
[1641743260548,1.38189788,3090.6,3090.2,2.75669612]
[1641743260749,1.38189788,3090.6,3090.1,4.7598203]
[1641743260750,0.464,3090.5,3090.1,4.7598203]
[1641743260950,2.4290606,3090.4,3090.3,0.00227369]
[1641743261349,2.8930606,3090.4,3090.3,0.00227369]
[1641743261783,2.0833706,3090.4,3090.3,0.00227369]
[1641743262984,1.27369,3090.4,3090.3,0.00227369]
[1641743265832,2.1189585,3090.4,3090.3,0.00227369]
[1641743266032,0.46477022,3090.4,3090.3,0.00227369]
[1641743266631,1.27446022,3090.4,3090.3,0.00227369]
[1641743267632,1.73846022,3090.4,3090.3,0.00227369]
[1641743268034,0.80969,3090.4,3090.3,1.40771572]
[1641743269382,2.42839,3090.8,3090.3,1.40771572]
[1641743269383,0.80943,3090.6,3090.3,1.40771572]
[1641743269785,0.80943,3090.6,3090.4,0.00170527]
[1641743270482,0.80943,3090.6,3090.5,7.72351634]
[1641743270684,0.80937,3090.8,3090.5,1.22351634]
[1641743270884,0.80937,3090.8,3090.5,1.22465318]
[1641743272289,1.69901422,3091.4,3090.5,1.22465318]
[1641743272290,0.08027422,3091.4,3090.6,4.6]
[1641743272495,0.00170527,3091.6,3090.8,0.01256854]
[1641743272688,0.00341054,3091.3,3090.8,0.01256854]
[1641743272886,0.8092,3091.4,3090.8,0.01256854]
[1641743273136,0.00284212,3091.2,3090.8,0.01256854]
[1641743273336,0.00341054,3091.3,3090.9,1.25051595]
[1641743273538,0.0022737,3091.1,3091.0,1.11790728]
[1641743273739,0.00284212,3091.2,3091.0,1.11790728]
[1641743273939,0.0022737,3091.1,3091.0,13.16790728]
[1641743274340,0.0022737,3091.1,3091.0,1.11790728]
[1641743274747,1.61914477,3091.8,3091.4,1.4101065]
[1641743274940,1.61914477,3091.8,3091.5,1.27087503]
[1641743274941,0.80915,3091.6,3091.5,1.27087503]
[1641743276540,0.80915,3091.6,3091.5,4.02686607]
[1641743277991,4.04671477,3091.8,3091.5,4.02686607]
[1641743277992,1.91961307,3091.8,3091.5,4.02686607]
[1641743278192,1.91961307,3091.8,3091.5,4.02800291]
[1641743278493,0.80915,3091.6,3091.5,4.02800291]
[1641743278691,0.80915,3091.6,3091.5,2.75712788]
[1641743279291,0.80915,3091.6,3091.5,0.00113684]
[1641743279690,0.80915,3091.6,3091.3,1.12362071]
[1641743280091,0.80915,3091.6,3091.4,0.00170527]
[1641743280295,0.80915,3091.6,3091.5,1.36060183]
[1641743280749,0.80915,3091.6,3091.5,1.36173868]
[1641743281247,0.80915,3091.6,3091.5,4.11771604]
[1641743283749,0.80915,3091.6,3091.5,1.36173868]
[1641743288340,0.80915,3091.6,3091.5,0.00113685]
[1641743288738,1.35342422,3091.6,3091.1,0.00341054]
[1641743288937,1.35342422,3091.6,3090.9,0.00454739]
[1641743288938,0.80938,3091.4,3090.9,0.00454739]
[1641743289137,0.80938,3091.4,3090.7,1.17029378]
[1641743289138,0.80944,3091.2,3090.8,0.00511581]
[1641743289338,1.27344,3091.2,3090.8,1.17540959]
[1641743289537,3.5813601,3091.2,3090.8,2.65128563]
[1641743289736,0.8094382,3091.1,3090.9,0.00454739]
[1641743290742,0.8094382,3091.1,3090.7,0.00568424]
[1641743290942,0.80947,3091.0,3090.7,0.00568424]
[1641743291797,0.80947,3091.0,3090.5,1.37110035]
[1641743291990,0.80943,3090.9,3090.5,1.37110035]
[1641743292191,0.80944,3090.7,3090.6,0.00625266]
[1641743292991,0.80944,3090.7,3090.6,2.76307027]
[1641743293496,3.10338051,3090.7,3090.6,0.00625266]
[1641743293692,11.80966,3090.6,3090.3,2.75681761]
[1641743293891,11.80966,3090.6,3090.4,0.00113685]
[1641743293892,3.07198708,3090.5,3090.4,0.00113685]
[1641743294092,0.80965,3090.5,3090.4,0.00113685]
[1641743294492,0.80965,3090.5,3090.4,2.72857287]
[1641743294891,0.80965,3090.5,3090.4,1.37243168]
[1641743295092,0.80965,3090.5,3090.2,0.00227369]
[1641743295093,1.61918,3090.5,3090.2,0.00227369]
[1641743295294,1.61918,3090.5,3090.2,2.75923041]
[1641743295295,0.80953,3090.4,3090.2,2.75923041]
[1641743295737,0.80953,3090.4,3090.3,0.00170527]
[1641743296137,1.61913,3090.4,3090.3,0.00170527]
[1641743296534,1.61913,3090.4,3090.2,2.70866199]
[1641743296535,0.80953,3090.4,3090.2,2.70866199]
[1641743296835,0.80953,3090.4,3090.1,2.23321219]
[1641743298837,3.88801263,3090.8,3090.1,2.23321219]
[1641743299036,2.26891263,3090.8,3090.1,2.23321219]
[1641743299309,0.00227369,3090.7,3090.1,2.23321219]
[1641743299501,0.8096,3090.5,3090.1,2.23321219]
[1641743299698,0.80953,3090.4,3090.1,2.23321219]
[1641743299898,0.80953,3090.4,3090.1,0.9311203]
[1641743300701,2.639517,3090.3,3090.1,0.9311203]
[1641743300899,2.639517,3090.3,3089.6,7.84113509]
[1641743300900,1.35463416,3089.7,3089.6,7.84113509]
[1641743301103,2.11503416,3089.7,3089.6,4.13543509]
[1641743301308,2.11503416,3089.7,3089.6,4.13941406]
[1641743301801,2.92486416,3089.7,3089.6,0.00397897]
[1641743302200,2.92486416,3089.7,3089.2,0.00625266]
[1641743302402,0.80986,3089.5,3089.0,0.00738951]
[1641743302800,1.23454506,3089.2,3089.0,0.00738951]
[1641743303037,0.80991,3089.1,3089.0,0.00738951]
[1641743303237,0.80991,3089.1,3088.9,0.00795793]
[1641743304237,0.80991,3089.1,3088.7,0.00909478]
[1641743304637,0.80991,3089.1,3088.5,4.97059378]
[1641743304638,0.80991,3089.1,3088.6,0.0096632]
[1641743305639,0.80993,3089.0,3088.6,0.0096632]
[1641743305840,0.80993,3088.8,3088.6,0.0096632]
[1641743306239,0.77501735,3088.9,3088.7,4.45]
[1641743306642,0.77501735,3088.9,3088.8,0.00852635]
[1641743307094,0.77501735,3088.9,3088.5,0.01023162]
[1641743307490,0.464,3088.8,3088.5,0.01023162]
[1641743307688,1.99372119,3088.7,3088.5,0.01023162]
[1641743307988,1.99372119,3088.7,3088.4,0.01080005]
[1641743308589,1.62019,3088.6,3088.4,0.01080005]
[1641743308993,1.62019,3088.6,3088.1,0.01250532]
[1641743309187,1.62019,3088.6,3088.0,0.01307374]
[1641743309587,4.42401119,3088.7,3088.0,0.01307374]
[1641743309588,1.62019,3088.4,3088.0,0.01307374]
[1641743309788,1.62019,3088.4,3088.0,1.25845035]
[1641743310187,1.62019,3088.4,3088.1,0.01250532]
[1641743310644,0.8101,3088.3,3088.1,0.01250532]
[1641743310844,1.6925,3088.3,3088.1,0.01250532]
[1641743311042,1.6925,3088.3,3088.0,0.01307374]
[1641743311444,1.6925,3088.3,3087.9,0.01364216]
[1641743311648,1.37030162,3088.1,3087.9,0.01364216]
[1641743311849,0.81018,3088.0,3087.9,0.01364216]
[1641743312747,1.62036,3088.1,3088.0,1.62036]
[1641743312947,1.62036,3088.1,3087.9,0.01364216]
[1641743313147,1.62036,3088.1,3088.0,0.01307374]
[1641743313347,1.62036,3088.1,3087.9,0.01364216]
[1641743313550,1.28554903,3087.8,3087.6,0.01534743]
[1641743313851,0.81027,3087.7,3087.5,0.01591586]
[1641743314682,0.81027,3087.7,3087.4,0.01648428]
[1641743314882,0.81032,3087.6,3087.4,0.01648428]
[1641743317185,0.81032,3087.6,3087.3,0.21559779]
[1641743317186,12.16032,3087.6,3087.3,0.21559779]
[1641743317387,12.62432,3087.6,3087.5,2.75908458]
[1641743317586,6.66048,3087.4,3087.3,0.21559779]
[1641743317790,0.81048,3087.4,3087.3,0.21559779]
[1641743318037,0.89075422,3087.4,3087.3,0.21559779]
[1641743318438,0.81048,3087.4,3087.3,0.21559779]
[1641743319140,10.95,3087.4,3087.0,6.16]
[1641743319343,1.87428447,3087.3,3087.0,6.16]
[1641743319544,0.8105496,3087.2,3087.1,0.00170527]
[1641743319839,0.54427422,3087.2,3086.7,4.13756672]
[1641743320140,0.08027422,3087.1,3086.8,0.00170527]
[1641743320340,1.86454422,3087.1,3086.8,0.00170527]
[1641743320742,0.89088402,3087.0,3086.8,0.00170527]
[1641743321340,0.89088402,3087.0,3086.6,0.00284212]
[1641743321540,0.89088402,3087.0,3086.4,5.3078605]
[1641743321541,12.7,3086.7,3086.4,5.3078605]
[1641743321792,0.8106731,3086.6,3086.1,1.56000759]
[1641743321990,4.68233366,3086.6,3086.1,1.56000759]
[1641743322186,0.08027422,3086.5,3086.2,0.00227369]
[1641743322485,0.08027422,3086.5,3086.0,1.18568142]
[1641743322486,11.61186395,3086.3,3086.1,0.00284212]
[1641743322685,1.27475,3086.2,3086.1,0.00284212]
[1641743323285,1.22475,3086.2,3086.1,0.00284212]
[1641743323886,1.22475,3086.2,3086.0,1.24288195]
[1641743324187,1.22475,3086.2,3086.1,0.00284212]
[1641743324590,1.22475,3086.2,3086.0,1.19231353]
[1641743324785,1.62149,3086.3,3086.0,1.19231353]
[1641743325186,0.464,3086.4,3086.0,1.19231353]
[1641743325387,0.464,3086.8,3086.0,1.19231353]
[1641743325637,0.08197949,3086.9,3086.0,1.19231353]
[1641743325638,0.00113685,3086.3,3086.0,1.19231353]
[1641743325837,0.08027422,3086.9,3086.0,1.19231353]
[1641743325838,0.00341054,3086.7,3086.0,1.19231353]
[1641743326039,0.00397897,3086.8,3086.0,1.19231353]
[1641743326238,0.00284212,3086.6,3086.0,1.19231353]
[1641743326540,0.0022737,3086.5,3086.0,2.00264353]
[1641743326839,0.00170527,3086.4,3086.0,1.19231353]
[1641743327240,0.00113685,3086.3,3086.0,1.19231353]
[1641743327437,0.00113685,3086.3,3086.1,1.56000759]
[1641743327637,0.81041,3086.9,3086.1,1.56000759]
[1641743328038,0.00397897,3086.8,3086.1,1.56000759]
[1641743328236,0.00397897,3086.8,3086.0,2.75232112]
[1641743328437,1.62158656,3087.2,3086.9,1.27847879]
[1641743328637,1.62158656,3087.2,3086.3,0.01272805]
[1641743328836,0.00170527,3087.1,3086.4,1.22116397]
[1641743329037,0.00170527,3087.1,3086.4,1.22343767]
[1641743329290,0.00113684,3087.0,3086.5,0.00170527]
[1641743329684,0.00113684,3087.0,3086.9,1.12142137]
[1641743329890,0.76148684,3087.1,3086.9,1.12142137]
[1641743330286,1.62158656,3087.2,3086.9,1.12142137]
[1641743330886,2.43190656,3087.2,3086.9,1.12142137]
[1641743331087,2.43190656,3087.2,3087.0,1.50171901]
[1641743332287,2.38190656,3087.2,3087.0,1.50171901]
[1641743336237,2.38190656,3087.2,3086.5,1.18864957]
[1641743336539,0.81049,3086.8,3086.6,1.18921799]
[1641743336796,8.564,3086.7,3086.6,1.18921799]
[1641743336988,8.564,3086.7,3086.6,1.1869443]
[1641743337187,8.564,3086.7,3086.6,1.18921799]
[1641743337387,8.564,3086.7,3086.6,1.32381612]
[1641743337786,0.464,3086.7,3086.6,1.32381612]
[1641743338186,5.464,3086.7,3086.6,1.32381612]
[1641743338388,5.464,3086.7,3086.6,4.08394227]
[1641743339387,2.51985987,3086.7,3086.6,4.08394227]
[1641743339587,2.98385987,3086.7,3086.6,4.08394227]
[1641743340193,0.464,3086.7,3086.6,4.08394227]
[1641743341235,4.314,3086.7,3086.6,4.08394227]
[1641743341636,0.464,3086.7,3086.6,4.08394227]
[1641743342238,4.414,3086.7,3086.6,4.08394227]
[1641743342437,0.464,3086.7,3086.6,4.08394227]
[1641743342638,0.464,3086.7,3086.6,7.28394227]
[1641743343638,0.99107694,3086.9,3086.6,7.28394227]
[1641743343837,0.464,3086.8,3086.6,7.28394227]
[1641743344038,0.54427422,3086.8,3086.7,0.00170527]
[1641743344889,1.35476422,3086.8,3086.7,0.00170527]
[1641743345289,1.35476422,3086.8,3086.7,2.76183142]
[1641743346093,0.6453661,3086.6,3086.1,1.20033932]
[1641743346293,14.81283885,3086.2,3086.1,1.20033932]
[1641743346490,14.62142572,3086.2,3086.1,3.932e-05]
[1641743346692,10.4,3086.1,3085.4,7.29108243]
[1641743346891,0.464,3086.0,3085.4,7.29108243]
[1641743347093,1.84427422,3086.0,3085.7,1.38693636]
[1641743347291,0.08027422,3085.9,3085.7,1.38693636]
[1641743347592,0.81088,3085.7,3085.1,4.75648785]
[1641743347792,2.08569,3085.6,3085.1,4.75648785]
[1641743348041,0.464,3085.5,3085.3,0.00795792]
[1641743348437,0.464,3085.5,3085.4,1.48511234]
[1641743348638,2.89654,3085.5,3085.4,1.48511234]
[1641743348839,2.08569,3085.5,3085.4,1.44250184]
[1641743350041,2.08569,3085.5,3085.1,3.7332]
[1641743350243,3.67223,3085.5,3085.1,3.7332]
[1641743350443,0.81094,3085.3,3085.1,3.7332]
[1641743350644,0.81094,3085.3,3085.2,0.00113685]
[1641743350841,3.70758,3085.5,3085.4,2.38906]
[1641743351896,0.81093,3085.3,3085.2,1.48672197]
[1641743352292,1.62185,3085.3,3085.2,1.48672197]
[1641743352490,0.81092,3085.3,3085.2,1.48672197]
[1641743353093,0.81092,3085.4,3085.2,1.48672197]
[1641743353297,2.43279,3085.6,3085.2,1.48672197]
[1641743353496,5.32889,3086.3,3085.2,1.48672197]
[1641743353694,0.81066,3085.8,3085.2,1.48672197]
[1641743353894,0.81293369,3085.8,3085.2,1.48672197]
[1641743354395,0.81293369,3085.8,3085.7,5.58516296]
[1641743354595,0.81293369,3085.8,3085.7,1.33516296]
[1641743354995,0.81293369,3085.8,3085.7,1.23516296]
[1641743356038,3.2424578,3086.5,3085.8,14.8]
[1641743356237,0.6453661,3086.6,3085.8,14.8]
[1641743356238,0.6453661,3086.6,3085.8,33.71]
[1641743356438,0.0022737,3086.2,3085.8,14.8]
[1641743356636,0.0022737,3086.2,3085.8,15.6104]
[1641743356836,0.00170527,3086.1,3085.8,15.6104]
[1641743357036,0.00170527,3086.1,3086.0,13.41109121]
[1641743357236,0.00677781,3086.4,3086.0,13.41109121]
[1641743357436,0.00677781,3086.4,3086.2,1.04389491]
[1641743357640,0.00677781,3086.4,3086.3,9.61393378]
[1641743357839,0.00677781,3086.4,3086.3,1.21393378]